Cogmind - Beta 11.1 @@@ ROGUE MODE // 2022.08.28 @ 17:18:42 Player: HeartGrenade Result: Destroyed by H-77 Assassin with Coil Gun Performance ------------- Evolutions (7) 3500 Regions Visited (27) 5400 Robots Destroyed (310) 1550 Value Destroyed (14005) 14005 Prototype IDs (44) 880 Alien Tech Used (3) 600 Bonus (4871) 4871 TOTAL SCORE: 30806 Bonus ------- High Alert Combat Kills 1116 Follower Combat Kills 593 Met Imprinter 300 Met Zhirov 300 Met Warlord at Base 500 MAIN.C Attacked Warlord 500 Warlord Defense Kills 1142 Scanned by Researcher 500 Friendly Fire -80 Cogmind --------- Core Integrity 0/1300 Matter 208/300 Energy 98/100 System Corruption 17% Temperature Cool (0) Movement Flying (30) Location -3/Testing Parts ------- > --- POWER (3) -------- (None) > --- PROPULSION (6) --- Improved Diametric Drive > --- UTILITY (9) ------ Triangulator System Mapper Improved Corruption Screen > --- WEAPON (4) ------- (None) > --- INVENTORY (5) ---- Huge Storage Unit Energy Well (350) Advanced System Shield Peak State ------------ > --- POWER ------------ Micro Antimatter Reactor Vortex Chain Reactor > --- PROPULSION ------- Advanced Myomer Leg Advanced Myomer Leg Advanced Myomer Leg > --- UTILITY ---------- Improved Cooling System Huge Storage Unit Long-range Sensor Array Advanced Signal Interpreter Long-range Terrain Scanner Advanced Terrain Scan Processor Experimental Targeting Computer Transmission Jammer Advanced Shield Generator > --- WEAPON ----------- Improved Arc Projector Gamma Rifle Wave Gun Ionic Axe > --- INVENTORY -------- Armored Wheel Energy Well High-capacity Matter Pod Centrium Medium Armor Plating Advanced Hardlight Generator System Mapper Advanced System Shield Transdimensional Reconstructor Improved Arc Projector Improved Arc Projector Hardcell Cannon Mini Grenade Launcher Micro-nuke Launcher RU-N14's Throwing Claymores v3 RU-N14's Throwing Claymores v3 RU-N14's Throwing Claymores v3 RU-N14's Throwing Claymores v3 RU-N14's Throwing Claymores v3 Molecular Deconstructor [Rating: 137] Favorites ----------- Power Neutrino Core Engine Angular Momentum Engine Power Core Neutrino Core Reactor Quantum Reactor Propulsion Light Treads Treads Light Treads Leg Advanced Myomer Leg Wheel Armored Wheel Flight Unit Improved Diametric Drive Utility Huge Storage Unit Device Experimental Sensor Array Storage Huge Storage Unit Processor Improved Signal Interpreter Hackware Makeshift System Shield Protection Hardened Medium Armor Plating Weapon Autogun Energy Gun Heavy Particle Gun Energy Cannon Advanced Plasma Cannon Ballistic Gun Autogun Ballistic Cannon Hardcell Cannon Launcher Mini Grenade Launcher Special Weapon RU-N14's Throwing Claymores v3 Slashing Weapon Phasing Sabre Build | -11 -10 -10 -9 -9 -9 -8 -8 -7 -7 -7 -7 -6 -6 -6 -6 -5 -5 -5 -5 -4 -4 -4 -4 -4 -3 -3 -3 ------- Run | Scr Mat Min Mat Min Exi Min Mat Fac Low Low Zio Pro Fac Ext Cet Fac Upp Upp War Pro Fac Upp Upp Zhi Pro Res Tes Slots Evolved 14 | . . . 2 . . . 2 2 . . . . 2 . . 2 . . . . 2 . . . . 2 . Power 2 | . . . . . . . . . . . . . 1 . . . . . . . . . . . . 1 . Propulsion 4 | . . . 1 . . . 1 . . . . . . . . 1 . . . . 1 . . . . . . Utility 7 | . . . 1 . . . 1 2 . . . . . . . 1 . . . . 1 . . . . 1 . Weapon 1 | . . . . . . . . . . . . . 1 . . . . . . . . . . . . . . Parts Attached 328 | 6 5 . 17 4 . 8 23 11 . 6 3 7 12 28 10 13 1 8 20 4 48 12 6 7 15 49 5 Power 29 | 1 1 . 2 . . 2 3 . . . . 1 2 3 1 1 . 1 1 . 4 . . . 1 5 . Engine 10 | 1 1 . 1 . . . 1 . . . . . . 2 1 1 . . . . . . . . . 2 . Core 14 | . . . 1 . . 2 2 . . . . 1 2 1 . . . 1 . . 4 . . . . . . Reactor 5 | . . . . . . . . . . . . . . . . . . . 1 . . . . . 1 3 . Propulsion 72 | 2 1 . 8 2 . 3 10 4 . . . 2 2 8 2 3 . . 3 . 5 3 . 3 1 8 2 Treads 56 | 2 1 . 8 2 . 3 10 4 . . . 2 2 7 2 3 . . 2 . 4 1 . . . 2 1 Leg 8 | . . . . . . . . . . . . . . 1 . . . . 1 . . . . 3 1 2 . Wheel 6 | . . . . . . . . . . . . . . . . . . . . . 1 2 . . . 3 . Hover . | . . . . . . . . . . . . . . . . . . . . . . . . . . . . Flight 2 | . . . . . . . . . . . . . . . . . . . . . . . . . . 1 1 Utility 110 | 1 2 . 5 . . 1 5 6 . 3 . 1 4 5 4 7 . 6 8 1 24 5 1 1 6 13 1 Device 61 | . . . . . . . 1 1 . 2 . 1 2 3 2 6 . 4 4 1 19 2 . 1 5 7 . Storage 7 | 1 1 . 1 . . . . 1 . . . . . . 1 . . . . . . . . . . 2 . Processor 15 | . . . 1 . . . 2 3 . . . . . 1 . 1 . . 2 . 1 1 . . . 2 1 Hackware 3 | . . . . . . . . . . . . . 1 . . . . . . . 1 . . . . 1 . Protection 24 | . 1 . 3 . . 1 2 1 . 1 . . 1 1 1 . . 2 2 . 3 2 1 . 1 1 . Artifact . | . . . . . . . . . . . . . . . . . . . . . . . . . . . . Weapon 117 | 2 1 . 2 2 . 2 5 1 . 3 3 3 4 12 3 2 1 1 8 3 15 4 5 3 7 23 2 Energy Gun 25 | 1 . . . . . 1 1 . . . 1 . 2 3 . . . . . . 3 . 1 . 2 10 . Energy Cannon 8 | . . . . . . . . . . . . . . 1 . . . . 1 . 2 . 1 1 . 2 . Ballistic Gun 38 | 1 1 . 2 1 . 1 2 1 . 1 . 2 . 6 2 1 . 1 2 1 5 2 1 1 2 1 1 Ballistic Cannon 2 | . . . . . . . . . . . . . . . . . . . . . . . . . . 2 . Launcher 16 | . . . . 1 . . 1 . . 1 . 1 . 2 1 . 1 . . . 1 1 2 . 2 2 . Special Weapon 11 | . . . . . . . . . . . . . . . . . . . 3 1 1 . . . 1 4 1 Impact Weapon . | . . . . . . . . . . . . . . . . . . . . . . . . . . . . Slashing Weapon 17 | . . . . . . . 1 . . 1 2 . 2 . . 1 . . 2 1 3 1 . 1 . 2 . Piercing Weapon . | . . . . . . . . . . . . . . . . . . . . . . . . . . . . Special Melee Weapon . | . . . . . . . . . . . . . . . . . . . . . . . . . . . . Unidentified Prototypes 20 | . . . . . . . 2 . . . . . . 1 2 . . . 5 . 1 . . 2 1 6 . Corrupted Parts 1 | . . . . . . . . . . . . . . . . . . . . . . . . . . 1 . System Corruption 1 | . . . . . . . . . . . . . . . . . . . . . . . . . . 1 . Parts Lost 110 | . 1 . 1 . . 5 5 2 . 2 . 3 4 11 6 2 . 1 . . 10 3 1 . 11 37 5 Power 16 | . 1 . . . . 1 2 . . . . . . 1 2 . . . . . 1 . . . 2 6 . Propulsion 34 | . . . . . . 2 3 . . . . 2 1 3 1 2 . 1 . . 5 1 . . 2 7 4 Utility 29 | . . . 1 . . . . 2 . 2 . 1 2 3 2 . . . . . 2 1 . . 3 10 . Weapon 31 | . . . . . . 2 . . . . . . 1 4 1 . . . . . 2 1 1 . 4 14 1 Highest Loss Streak 8 | . 1 . 1 . . 2 2 2 . 2 . 2 2 8 5 2 . 1 . . 2 2 1 . 7 7 5 To Critical Strikes 4 | . . . . . . . . . . . . . . . 1 . . . . . 1 . . . 1 1 . Average Slot Usage (%) 90 | . 98 100 99 100 100 99 99 98 100 96 100 96 96 89 89 87 88 85 83 88 86 81 83 76 82 54 32 Engine 3 | . 13 14 3 . . . 1 7 7 7 7 5 . 1 9 6 11 7 5 5 2 . . . . . . Core 4 | . . . 7 11 11 10 7 . . . . 1 11 10 . . . 2 4 . 3 10 10 10 6 . . Treads 22 | . 27 28 33 33 33 32 35 30 30 30 30 29 25 22 19 20 17 14 11 17 18 9 10 10 2 1 3 Leg 1 | . . . . . . . . . . . . . . 1 . . . . . . . . . 6 15 8 3 Device 9 | . . . . . . . 9 15 15 14 15 12 13 11 13 11 11 9 10 11 13 13 10 9 10 11 4 Storage 7 | . 14 14 11 11 11 11 9 7 7 7 7 7 6 6 6 5 5 5 5 5 5 5 5 5 5 5 . Processor 9 | . . . 2 11 11 11 9 13 15 11 7 7 6 5 6 11 11 11 11 11 10 10 15 15 15 9 3 Hackware 2 | . . . . . . . . . . . . . 3 6 6 5 5 5 5 5 5 5 5 5 4 . 4 Protection 7 | . 13 14 18 11 11 11 8 6 7 7 15 15 7 2 6 5 5 7 5 5 5 6 5 5 3 . . Energy Gun 5 | . 3 . . . . 3 9 7 7 7 7 7 11 8 13 6 5 5 5 5 3 5 4 . 1 4 . Energy Cannon 1 | . . . . . . . . . . . . . . 1 . . . . . . 6 . . . 4 . . Ballistic Gun 8 | . 24 28 22 21 22 18 8 . 7 4 . 6 3 4 3 8 5 7 5 5 4 6 9 . 5 . . Slashing Weapon 1 | . . . . . . . . 6 . 1 6 . 3 . . . . . 4 4 1 . . 1 . 1 . Naked Turns . | . . . . . . . . . . . . . . . . . . . . . . . . . . . . Heaviest Build 170 | 13 31 31 101 101 101 101 104 65 65 77 79 80 89 89 122 125 125 132 151 151 170 129 125 129 138 162 1 Greatest Support 216 | 40 40 40 60 60 60 60 89 91 87 87 87 87 90 106 138 188 188 188 188 188 216 103 12 90 90 150 20 Greatest Overweight (x) 10 | 1 1 . 1 1 1 1 1 . . . . . 1 1 1 . . . . . 1 10 10 10 1 9 . Average Overweight (x) . | . . . . 1 1 1 1 . . . . . . . . . . . . . . 8 10 5 1 1 . Largest Inventory Capacity 25 | 8 15 15 25 25 25 25 25 25 20 20 20 20 20 20 25 25 25 25 25 25 25 25 25 25 25 25 5 Average Capacity 22 | 7 13 15 15 25 25 25 25 20 20 20 20 20 20 20 22 25 25 25 25 25 25 25 25 25 25 23 5 Most Carried 25 | 2 13 12 20 24 25 25 25 24 20 20 20 20 20 20 24 25 25 25 25 25 25 25 25 25 25 21 5 Average Carried 20 | 1 9 12 14 21 24 23 24 20 20 19 19 19 19 18 21 21 25 24 24 25 24 24 24 24 23 14 4 Final Capacity 25 | 8 15 15 25 25 25 25 25 20 20 20 20 20 20 20 25 25 25 25 25 25 25 25 25 25 25 5 5 Final Carried 25 | 1 12 12 20 24 25 22 25 20 20 20 20 19 20 20 21 25 25 25 25 25 25 25 25 25 19 5 3 Class Distribution -------------------- 44% | Mutant 32% | Scavenger-Mutant 7% | Scavenger-Skirmisher 5% | Scavenger-Tank 4% | Scavenger-Gunner Dominant Class ---------------- Mutant | -10/Materials Mutant | -10/Mines Mutant | -9/Materials Mutant | -9/Mines Mutant | -9/Exiles Mutant | -8/Mines Mutant | -8/Materials Mutant | -7/Factory Mutant | -7/Lower Caves Mutant | -7/Lower Caves Mutant | -7/Zion Mutant | -6/Proximity Caves Scavenger-Mutant | -6/Factory Scavenger-Mutant | -6/Extension Scavenger-Mutant | -6/Cetus Scavenger-Skirmisher | -5/Factory Scavenger-Mutant | -5/Upper Caves Scavenger-Mutant | -5/Upper Caves Scavenger-Mutant | -5/Warlord Scavenger-Mutant | -4/Proximity Caves Scavenger-Mutant | -4/Factory Scavenger-Mutant | -4/Upper Caves Scavenger-Mutant | -4/Upper Caves Scavenger-Mutant | -4/Zhirov Scavenger-Mutant | -3/Proximity Caves Mutant | -3/Research Hacker-Mutant | -3/Testing Resources | -11 -10 -10 -9 -9 -9 -8 -8 -7 -7 -7 -7 -6 -6 -6 -6 -5 -5 -5 -5 -4 -4 -4 -4 -4 -3 -3 -3 ----------- Run | Scr Mat Min Mat Min Exi Min Mat Fac Low Low Zio Pro Fac Ext Cet Fac Upp Upp War Pro Fac Upp Upp Zhi Pro Res Tes Matter Collected 7373 | 183 320 35 717 102 . 352 567 48 57 129 139 256 190 433 182 495 40 97 273 56 811 207 290 145 392 856 1 Remotely . | . . . . . . . . . . . . . . . . . . . . . . . . . . . . Salvage Created 11479 | . 458 36 870 137 . 355 1020 48 49 49 . 527 686 757 351 384 57 58 168 106 2523 226 212 147 572 1505 178 Parts 552 | . 28 4 55 14 . 22 53 1 2 . . 13 26 35 9 20 7 3 5 4 106 14 5 2 34 77 13 Haulers Intercepted 11 | . 1 . 2 . . . 3 . . . . . . . . . . . . . 2 . . . . 3 . Recyclers Shooed 3 | . . . . 1 . . 1 . . . . . . . . . . . . . . . . . . 1 . Parts Field Recycled . | . . . . . . . . . . . . . . . . . . . . . . . . . . . . Retrieved Matter . | . . . . . . . . . . . . . . . . . . . . . . . . . . . . Parts Self-Destructed 73 | . . . . . . . . . . . . 11 . . . . 7 3 . 4 . 14 5 2 27 . . Prevented 6 | . . . . . . . . . 3 . . . . . . . 1 . . 2 . . . . . . . Kills | -11 -10 -10 -9 -9 -9 -8 -8 -7 -7 -7 -7 -6 -6 -6 -6 -5 -5 -5 -5 -4 -4 -4 -4 -4 -3 -3 -3 ------- Run | Scr Mat Min Mat Min Exi Min Mat Fac Low Low Zio Pro Fac Ext Cet Fac Upp Upp War Pro Fac Upp Upp Zhi Pro Res Tes Combat Hostiles Destroyed 254 | . 11 3 15 5 . 10 19 1 1 3 . 10 11 15 6 6 5 2 10 7 37 6 5 . 17 33 16 Guns 123 | . 11 3 15 3 . 10 16 1 1 1 . 7 10 11 4 6 . 2 1 1 7 4 . . 4 5 . Cannons 35 | . . . . . . . . . . . . . . . . . . . . 1 18 . 1 . 3 11 1 AOE 84 | . . . . 2 . . 3 . . 2 . 3 . 3 2 . 4 . 9 5 6 2 4 . 10 14 15 Classes Destroyed 19 | . 4 . 2 . . 2 2 1 . . . . 2 1 . . . . 2 . 3 . . . . . . Worker 16 | . . . . . . . . . . . . . 2 . . 1 . . . . 3 . . . . 9 1 Builder 8 | . . . 1 . . . . . . . . . 1 . . 1 . . . . 2 . . . . 3 . Tunneler 2 | . . . . . . . 1 . . . . . . . . . . . . . . . . . . 1 . Hauler 11 | . 1 . 2 . . . 3 . . . . . . . . . . . . . 2 . . . . 3 . Recycler 7 | . . . . . . . 2 . . . . . . . . . . . . . 2 . . . . 3 . Mechanic 1 | . . . . . . . . . . . . . . . . . . . . . 1 . . . . . . Operator 3 | . . . . . . . . . . . . . . . . . . . . . 2 . . . . . 1 Watcher 8 | . 1 . 1 . . . 2 . . . . . . . 1 1 . . . . 1 . . . . 1 . Swarmer 66 | . 2 3 . 3 . 4 7 . . . . . . 3 . 1 5 . 2 4 9 4 . . 5 10 4 Grunt 96 | . 9 . 8 . . 3 8 . 1 3 . 10 . 6 4 2 . . 6 3 9 . 4 . 5 9 6 Brawler 2 | . . . . . . . . . . . . . . . . . . . . . 1 . . . 1 . . Duelist 4 | . . . . . . 1 1 . . . . . . . . . . . . . 2 . . . . . . Protector 2 | . . . . . . . . . . . . . . . . . . . 1 . . . . . 1 . . Sentry 22 | . . . 7 2 . . 2 . . . . . 3 2 . . . . . . 4 1 . . 1 . . Specialist 2 | . . . . . . . . . . . . . 2 . . . . . . . . . . . . . . Hunter 27 | . . . . . . 2 1 . . . . . 2 2 . . . . . . 6 . 1 . 2 8 3 Programmer 28 | . . . . . . . . 1 . . . . 4 . . 3 . 2 . . 6 1 . . 2 6 3 Behemoth 2 | . . . . . . . . . . . . . . 2 . . . . . . . . . . . . . Cetus Guard 2 | . . . . . . . . . . . . . . . 2 . . . . . . . . . . . . Executioner 1 | . . . . . . . . . . . . . . . . . . . 1 . . . . . . . . Best Kill Streak 18 | . 5 3 7 3 . 2 5 1 1 3 . 4 4 3 3 4 5 2 9 16 7 2 4 . 10 10 18 Combat Bots Only 16 | . 5 3 6 3 . 2 3 1 1 3 . 4 3 3 2 3 5 2 9 16 4 2 4 . 10 5 16 Max Kills in Single Turn 5 | . 1 1 1 2 . 1 2 1 1 2 . 2 2 1 2 2 3 1 5 3 3 2 2 . 2 4 4 Gunslinging . | . . . . . . . . . . . . . . . . . . . . . . . . . . . . Exploded 5 | . . . . 2 . . 1 . . 2 . 2 . 1 2 . 3 . 5 3 3 2 2 . 2 2 4 Melee . | . . . . . . . . . . . . . . . . . . . . . . . . . . . . Uniques/NPCs Destroyed . | . . . . . . . . . . . . . . . . . . . . . . . . . . . . Combat | -11 -10 -10 -9 -9 -9 -8 -8 -7 -7 -7 -7 -6 -6 -6 -6 -5 -5 -5 -5 -4 -4 -4 -4 -4 -3 -3 -3 -------- Run | Scr Mat Min Mat Min Exi Min Mat Fac Low Low Zio Pro Fac Ext Cet Fac Upp Upp War Pro Fac Upp Upp Zhi Pro Res Tes Damage Taken 24275 | . 511 67 593 176 . 983 1028 389 15 311 . 993 1045 1714 1538 663 105 263 307 209 3172 368 372 . 1615 5837 2001 Core 2720 | . 70 17 32 18 . 77 70 16 . . . 97 122 203 57 58 15 . 21 12 246 40 106 . 207 964 272 Absorbed by Shields 1348 | . . . . . . . . . . 44 . 4 . . . . . . 22 61 510 . . . 288 419 . Reduced by Siege Mode 276 | . . . . . . . . . . . . . . . 15 . . . . . . . . . . . 261 Redirected to Shielding 52 | . 16 7 29 . . . . . . . . . . . . . . . . . . . . . . . . Regen/Repaired (Parts) 722 | . 121 . 118 . . . 109 97 . . . . 277 . . . . . . . . . . . . . . Core Remaining (%) 74 | 100 . 65 . . . 68 87 . . . . 83 . . 55 . . . . 89 . . . . 47 . . Volleys Fired 746 | . 38 5 49 7 . 40 75 6 3 7 . 45 48 39 28 18 4 5 7 26 124 19 5 . 41 89 18 Largest 4 | . 2 2 2 2 . 2 2 2 2 2 . 2 3 3 3 3 2 3 3 3 3 3 3 . 4 3 1 Hottest 234 | . 60 43 46 46 . 86 96 80 80 83 . 100 155 178 180 121 93 126 121 121 218 144 204 . 234 205 35 Shots Fired 1491 | . 71 10 98 12 . 80 144 12 6 10 . 87 107 88 52 54 6 15 14 31 302 38 12 1 86 137 18 Gun 1167 | . 71 10 98 10 . 80 137 12 6 5 . 84 107 82 49 54 4 13 10 28 137 33 4 . 48 77 8 Cannon 214 | . . . . . . . . . . . . . . 1 . . . . . . 161 4 2 1 24 21 . Launcher 55 | . . . . 2 . . 7 . . 5 . 3 . 5 3 . 2 2 . . 2 1 6 . 8 9 . Special 55 | . . . . . . . . . . . . . . . . . . . 4 3 2 . . . 6 30 10 Kinetic 647 | . 59 10 98 10 . 73 68 6 3 3 . 42 18 24 17 36 2 8 7 4 83 22 2 . 30 14 8 Thermal 671 | . 12 . . . . 7 69 6 3 2 . 42 89 59 32 18 2 5 3 24 215 15 4 1 42 21 . Explosive 104 | . . . . 2 . . 7 . . 5 . 3 . 5 3 . 2 2 4 3 4 1 6 . 14 33 10 Electromagnetic 63 | . . . . . . . . . . . . . . . . . . . . . . . . . . 63 . Robot Hit Streak 38 | . 8 2 12 6 . 9 15 16 4 6 . 29 38 11 13 9 2 2 8 13 19 13 5 . 14 9 7 Robot Miss Streak 5 | . 3 2 3 3 . 2 4 1 2 1 . 2 3 3 2 2 2 5 1 1 3 4 1 . 3 3 2 Penetration Max 1 | . . . . . . . . . . . . . . 1 1 1 . . . . 1 . . . 1 . . Secondary Targets 11 | . 2 1 . . . 2 1 . . . . . . 1 1 2 . . . . . . . . . 1 . Max Gunslinging Chain 1 | . 1 1 . . . 1 1 . . . . . . 1 1 1 . . . . . . . . . 1 . Shots Hit Robots 999 | . 49 5 67 7 . 57 107 9 3 6 . 77 75 59 42 35 3 5 11 7 190 21 9 4 54 82 15 Core Hits 581 | . 19 3 31 6 . 19 43 2 2 7 . 29 30 39 23 16 6 6 14 9 95 10 14 2 40 79 37 Critical Kills 6 | . 1 . . . . . . . . . . 1 . . . . . . . . 4 . . . . . . Critical Parts Destroyed 11 | . . . 1 . . . 2 . . . . 1 . . 1 3 . . . . 2 . . . 1 . . Critical Strikes 56 | . 1 . 1 . . . 4 . . . . 5 11 5 1 3 . . . . 14 . . . 1 4 6 Burn 28 | . . . . . . . 2 . . . . 3 11 5 . . . . . . 6 . . . . 1 . Meltdown 4 | . . . . . . . . . . . . . . . . . . . . . 4 . . . . . . Destroy 13 | . 1 . 1 . . . 2 . . . . 2 . . 1 3 . . . . 2 . . . 1 . . Blast 1 | . . . . . . . . . . . . . . . . . . . . . . . . . . 1 . Sever 10 | . . . . . . . . . . . . . . . . . . . . . 2 . . . . 2 6 Melee Attacks 94 | . . . . . . . 2 9 . 8 5 . 11 2 . 2 . . 16 8 10 1 . 4 . 16 . Impact . | . . . . . . . . . . . . . . . . . . . . . . . . . . . . Slashing 94 | . . . . . . . 2 9 . 8 5 . 11 2 . 2 . . 16 8 10 1 . 4 . 16 . Piercing . | . . . . . . . . . . . . . . . . . . . . . . . . . . . . Sneak Attacks 3 | . . . . . . . 1 . . . . . 1 . . . . . . . . . . . . 1 . Combat Hostiles . | . . . . . . . . . . . . . . . . . . . . . . . . . . . . Follow-up Attacks . | . . . . . . . . . . . . . . . . . . . . . . . . . . . . Damage Inflicted 44285 | . 696 69 1046 255 . 805 2300 200 55 617 . 1800 1725 1701 1229 963 355 191 2176 1239 7309 607 1017 381 3417 9127 5005 Guns 15982 | . 696 69 1041 86 . 805 1694 200 55 57 . 1392 1562 1198 968 963 44 105 199 130 2339 521 40 . 845 821 152 Cannons 4160 | . . . . . . . . . . . . . . . . . . . . . 3131 . 70 . 541 418 . Explosions 21206 | . . . . 159 . . 500 . . 560 . 408 . 461 261 . 311 86 1822 1011 1741 86 907 . 1815 6664 4414 Melee 914 | . . . . . . . 106 . . . . . 163 42 . . . . . . . . . 381 . 222 . Ramming 32 | . . . 5 10 . . . . . . . . . . . . . . . . 17 . . . . . . Kinetic 8298 | . 617 69 1041 86 . 700 671 58 18 16 . 617 208 328 404 532 18 73 120 54 1364 331 15 . 533 273 152 Thermal 11916 | . 79 . . . . 105 1023 142 37 41 . 775 1354 870 564 431 26 32 79 76 4648 190 95 . 853 496 . Explosive 20460 | . . . . 159 . . 500 . . 560 . 408 . 461 261 . 311 86 1822 1011 1199 86 907 . 1815 6460 4414 Electromagnetic 674 | . . . . . . . . . . . . . . . . . . . . . . . . . . 674 . Impact . | . . . . . . . . . . . . . . . . . . . . . . . . . . . . Slashing 2905 | . . . . . . . 106 . . . . . 163 42 . . . . 155 98 81 . . 381 216 1224 439 Piercing . | . . . . . . . . . . . . . . . . . . . . . . . . . . . . Highest Corruption 19 | . . . . . . . 1 5 5 11 11 . 8 8 8 4 . 3 2 . 8 9 9 9 19 17 17 Average Corruption 7 | . . . . . . . 1 3 5 7 11 . 3 8 8 3 . 2 2 . 5 8 9 9 12 9 17 Corruption Purged 5 | . . . . . . . . . . . . . . . . 4 . 1 . . . . . . . . . Corruption Blocked 6 | . . . . . . . . . . . . . . . . . . . . . . . . . . . 6 Effects 276 | . . . . . . . 2 7 21 15 3 . 16 41 9 3 . 4 3 . 27 19 25 8 32 33 8 Message Errors 71 | . . . . . . . . 3 10 1 2 . 6 9 1 1 . . . . 9 6 5 2 6 9 1 Matter Fused 71 | . . . . . . . 1 3 6 4 1 . 2 12 2 1 . 2 . . 6 3 4 . 8 14 2 Heat Flow Errors 35 | . . . . . . . . . . 1 . . 2 7 1 . . 1 . . 3 4 7 2 3 3 1 Energy Discharges 25 | . . . . . . . 1 1 1 3 . . 1 6 . . . 1 1 . 3 2 . 1 3 1 . Parts Rejected 2 | . . . . . . . . . . . . . . . . . . . . . 1 . . . 1 . . Data Loss (minor) 29 | . . . . . . . . . . 3 . . 3 2 1 1 . . 1 . 1 2 5 1 6 1 2 Data Loss (major) 11 | . . . . . . . . . 3 2 . . . . . . . . . . . 2 2 . 1 1 . Misfires 7 | . . . . . . . . . . 1 . . 1 1 . . . . 1 . 1 . 1 1 . . . Alerts 12 | . . . . . . . . . 1 . . . . 3 . . . . . . 2 . 1 1 1 2 1 Misdirections 2 | . . . . . . . . . . . . . . . . . . . . . . . . . 1 . 1 Weapon Failures 11 | . . . . . . . . . . . . . 1 1 4 . . . . . 1 . . . 2 2 . Overload Shots . | . . . . . . . . . . . . . . . . . . . . . . . . . . . . Overflow Damage 1177 | . . . . 41 . . 11 . . . . . . 12 . . . . 98 4 221 . 57 60 16 507 150 Projectiles 119 | . . . . . . . . . . . . . . . . . . . 5 . 56 . . . 6 23 29 Explosions 991 | . . . . 41 . . 11 . . . . . . 12 . . . . 93 4 165 . 57 . 10 477 121 Melee 67 | . . . . . . . . . . . . . . . . . . . . . . . . 60 . 7 . Knockbacks 2 | . . . 1 . . . . . . . . . . . . . . . . . . . . . . 1 . Impact 1 | . . . 1 . . . . . . . . . . . . . . . . . . . . . . . . Kinetic 1 | . . . . . . . . . . . . . . . . . . . . . . . . . . 1 . Secondary . | . . . . . . . . . . . . . . . . . . . . . . . . . . . . Self-Inflicted Damage 366 | . . . . . . . 18 . . . . . . 32 . . . . . . 102 . 3 . 17 194 . Shots 11 | . . . . . . . 1 . . . . . . 1 . . . . . . 2 . 1 . 1 5 . Rammed 3 | . . . 1 1 . . . . . . . . . . . . . . . . 1 . . . . . . Targets Rammed 3 | . . . 1 1 . . . . . . . . . . . . . . . . 1 . . . . . . Kicked . | . . . . . . . . . . . . . . . . . . . . . . . . . . . . Crushed . | . . . . . . . . . . . . . . . . . . . . . . . . . . . . Highest Temperature 441 | . 141 4 50 35 . 198 26 . 4 120 . 201 221 338 354 54 48 185 6 12 441 216 220 141 242 293 227 Average Temperature 78 | . 43 1 14 18 . 64 6 . 4 70 . 45 60 51 153 20 27 105 4 8 121 92 80 80 93 85 137 Received Heat Transfer 4046 | . 267 . 264 27 . 225 315 . 9 112 . 470 72 420 522 189 . . 45 28 291 36 114 . 194 391 55 Effects 9 | . . . . . . . . . . . . . . . 1 . . . . . 8 . . . . . . Shutdowns 1 | . . . . . . . . . . . . . . . . . . . . . 1 . . . . . . Energy Bleed 1 | . . . . . . . . . . . . . . . 1 . . . . . . . . . . . . Interference 7 | . . . . . . . . . . . . . . . . . . . . . 7 . . . . . . Siege Activations 2 | . . . . . . . . . . . . . . . 1 . . . . . . . . . . . 1 Total Turns 47 | . . . . . . . . . . . . . . . 7 . . . . . . . . . . . 40 Longest Duration 40 | . . . . . . . . . . . . . . . 7 . . . . . . . . . . . 40 Robots Corrupted 1 | . . . . . . . . . . . . . . . . . . . . . . . . . . 1 . Combat Hostiles 1 | . . . . . . . . . . . . . . . . . . . . . . . . . . 1 . Parts Fried 1 | . . . . . . . . . 1 . . . . . . . . . . . . . . . . . . Impact Corruptions . | . . . . . . . . . . . . . . . . . . . . . . . . . . . . Robots Melted 9 | . . . . . . . . . . . . . 1 1 . . . . . . 7 . . . . . . Combat Hostiles 8 | . . . . . . . . . . . . . 1 1 . . . . . . 6 . . . . . . Parts Melted 56 | . . . . . . . 5 1 . . . . 14 10 . 1 . . . . 20 1 1 . 1 2 . Heat Transferred 20929 | . 175 . . . . 222 2257 222 74 74 . 1591 3145 2132 1042 555 37 37 111 111 6996 259 111 . 980 798 . Parts Sabotaged 3 | . . . . . . . . . . . . . . . . . . . 3 . . . . . . . . Parts Stolen . | . . . . . . . . . . . . . . . . . . . . . . . . . . . . Parts Stripped . | . . . . . . . . . . . . . . . . . . . . . . . . . . . . Power Chain Reactions 2 | . . . . . . . . . . . . . . . . . . . . . . . . . . 2 . Missiles Intercepted . | . . . . . . . . . . . . . . . . . . . . . . . . . . . . Alert | -11 -10 -10 -9 -9 -9 -8 -8 -7 -7 -7 -7 -6 -6 -6 -6 -5 -5 -5 -5 -4 -4 -4 -4 -4 -3 -3 -3 ------- Run | Scr Mat Min Mat Min Exi Min Mat Fac Low Low Zio Pro Fac Ext Cet Fac Upp Upp War Pro Fac Upp Upp Zhi Pro Res Tes Peak Influence 1023 | . 220 155 325 161 . 165 285 144 . . . . 126 339 235 222 . . . . 1023 . . . . 798 914 Initial 405 | . . 85 . 49 . . 5 114 . . . . 28 46 139 131 . . . . . . . . . 104 405 Average 204 | . 84 81 167 89 . 71 152 57 . . . . 50 161 190 125 . . . . 506 . . . . 305 492 Maximum Alert Level 3 | . 1 . 1 . . . 1 . . . . . . 1 1 1 . . . . 3 . . . . 3 3 Low Security (%) 70 | 100 86 100 72 100 . 100 66 100 . . . . 100 74 63 84 . . . . 24 . . . . 50 . Level 1 15 | . 13 . 27 . . . 33 . . . . . . 25 36 15 . . . . 18 . . . . 17 . Level 2 7 | . . . . . . . . . . . . . . . . . . . . . 25 . . . . 22 91 Level 3 6 | . . . . . . . . . . . . . . . . . . . . . 31 . . . . 10 8 Level 4 . | . . . . . . . . . . . . . . . . . . . . . . . . . . . . Level 5 . | . . . . . . . . . . . . . . . . . . . . . . . . . . . . High Security . | . . . . . . . . . . . . . . . . . . . . . . . . . . . . Max Security . | . . . . . . . . . . . . . . . . . . . . . . . . . . . . Squads Dispatched 38 | . 3 . 1 . . . 1 1 . . . . 5 2 . 2 . . . . 7 . . . 1 10 5 Investigation 5 | . 1 . 1 . . . . . . . . . . 1 . . . . . . . . . . . 1 1 Extermination 10 | . . . . . . . . 1 . . . . 3 . . 1 . . . . 3 . . . . 2 . Reinforcement 17 | . 2 . . . . . 1 . . . . . 2 1 . 1 . . . . 3 . . . . 4 3 Assault 2 | . . . . . . . . . . . . . . . . . . . . . 1 . . . 1 . . Garrison 4 | . . . . . . . . . . . . . . . . . . . . . . . . . . 3 1 Intercept . | . . . . . . . . . . . . . . . . . . . . . . . . . . . . Searches Triggered . | . . . . . . . . . . . . . . . . . . . . . . . . . . . . Construction Impeded 3 | . . . . . . . . . . . . . . . . . . . . . 1 . . . . 1 1 Haulers Reinforced 3 | . . . . . . . . . . . . . . . . . . . . . 2 . . . . 1 . Active Scanning Responses . | . . . . . . . . . . . . . . . . . . . . . . . . . . . . Cargo Convoy Interrupts . | . . . . . . . . . . . . . . . . . . . . . . . . . . . . Stealth | -11 -10 -10 -9 -9 -9 -8 -8 -7 -7 -7 -7 -6 -6 -6 -6 -5 -5 -5 -5 -4 -4 -4 -4 -4 -3 -3 -3 --------- Run | Scr Mat Min Mat Min Exi Min Mat Fac Low Low Zio Pro Fac Ext Cet Fac Upp Upp War Pro Fac Upp Upp Zhi Pro Res Tes Distress Signals 18 | . . . 3 . . . 4 . . . . . 1 2 1 . . . . . 1 . . . . 6 . Communications Jammed 72 | . . . . . . . . . . . . . . . . 15 . . . . 47 . . . 8 2 . Distress Signals 68 | . . . . . . . . . . . . . . . . 15 . . . . 45 . . . 8 . . Times Spotted 386 | . 20 3 20 6 . 16 36 1 1 3 . 11 19 30 9 9 4 2 35 7 54 4 5 . 18 51 22 Peak Tracking Total 13 | . 7 3 5 3 . 6 5 1 1 3 . 4 3 6 5 3 5 2 13 4 5 1 4 . 5 6 13 Tactical Retreats 26 | . . . . . . 5 9 . . . . 1 . 3 . . 1 . . . 3 1 . . . 3 . Traps | -11 -10 -10 -9 -9 -9 -8 -8 -7 -7 -7 -7 -6 -6 -6 -6 -5 -5 -5 -5 -4 -4 -4 -4 -4 -3 -3 -3 ------- Run | Scr Mat Min Mat Min Exi Min Mat Fac Low Low Zio Pro Fac Ext Cet Fac Upp Upp War Pro Fac Upp Upp Zhi Pro Res Tes Traps Triggered 13 | . 1 . . . . . 1 3 . . . . 2 1 . 2 . . . . . . . . . 1 2 Indirectly . | . . . . . . . . . . . . . . . . . . . . . . . . . . . . Trap Hack Attempts . | . . . . . . . . . . . . . . . . . . . . . . . . . . . . Triggered . | . . . . . . . . . . . . . . . . . . . . . . . . . . . . Disarmed . | . . . . . . . . . . . . . . . . . . . . . . . . . . . . Reprogrammed 12 | . 12 . . . . . . . . . . . . . . . . . . . . . . . . . . Reused 2 | . 2 . . . . . . . . . . . . . . . . . . . . . . . . . . Traps Extracted . | . . . . . . . . . . . . . . . . . . . . . . . . . . . . Installed . | . . . . . . . . . . . . . . . . . . . . . . . . . . . . Triggered 15 | . 2 . . . . . . . 1 . . . . . . . 3 1 7 1 . . . . . . . Machines | -11 -10 -10 -9 -9 -9 -8 -8 -7 -7 -7 -7 -6 -6 -6 -6 -5 -5 -5 -5 -4 -4 -4 -4 -4 -3 -3 -3 ---------- Run | Scr Mat Min Mat Min Exi Min Mat Fac Low Low Zio Pro Fac Ext Cet Fac Upp Upp War Pro Fac Upp Upp Zhi Pro Res Tes Machines Disabled 20 | . . . . . . . 1 . . . . . . 2 . . . . . . 12 . 1 . 1 2 1 Max in Single Turn 3 | . . . . . . . 1 . . . . . . 1 . . . . . . 3 . 1 . 1 1 1 Garrison Access 2 | . . . . . . . 1 . . . . . . . . . . . . . 1 . . . . . . Energy Cycler 1 | . . . . . . . . . . . . . . 1 . . . . . . . . . . . . . Machines Sabotaged . | . . . . . . . . . . . . . . . . . . . . . . . . . . . . Garrisons Compromised . | . . . . . . . . . . . . . . . . . . . . . . . . . . . . Overloaded Fab Kills . | . . . . . . . . . . . . . . . . . . . . . . . . . . . . Hacking | -11 -10 -10 -9 -9 -9 -8 -8 -7 -7 -7 -7 -6 -6 -6 -6 -5 -5 -5 -5 -4 -4 -4 -4 -4 -3 -3 -3 --------- Run | Scr Mat Min Mat Min Exi Min Mat Fac Low Low Zio Pro Fac Ext Cet Fac Upp Upp War Pro Fac Upp Upp Zhi Pro Res Tes Machines Accessed 67 | . 6 . 9 . 1 . 8 6 1 . 1 . 5 3 . 4 . . 1 . 9 . . 4 . 4 5 Terminals 32 | . 4 . 7 . . . 5 1 . . . . . 3 . 2 . . . . 6 . . . . 1 3 Fabricators 2 | . . . . . . . . 1 . . . . . . . 1 . . . . . . . . . . . Repair Stations 12 | . 1 . 1 . . . 1 2 . . . . 3 . . 1 . . . . . . . . . 3 . Recycling Units 5 | . 1 . 1 . . . . 1 . . . . . . . . . . . . 2 . . . . . . Scanalyzers 4 | . . . . . . . 1 1 . . . . . . . . . . . . . . . . . . 2 Garrison Access 4 | . . . . . . . 1 . . . . . 2 . . . . . . . 1 . . . . . . Total Hacks 177 | . 19 . 23 . 2 . 23 16 1 . 3 . 12 8 . 10 . . 6 . 17 . . 17 . 6 14 Successful 96 | . 10 . 13 . 2 . 14 10 1 . 3 . 4 2 . 5 . . 6 . 6 . . 17 . . 3 Failed 81 | . 9 . 10 . . . 9 6 . . . . 8 6 . 5 . . . . 11 . . . . 6 11 Catastrophic 14 | . . . 3 . . . 2 1 . . . . 1 1 . . . . . . 3 . . . . 2 1 Database Lockouts . | . . . . . . . . . . . . . . . . . . . . . . . . . . . . Manual 48 | . 14 . 11 . . . 5 2 . . . . . . . 2 . . . . 5 . 1 . . . 8 Terminals 92 | . 16 . 19 . . . 15 3 . . . . . 8 . 5 . . . . 13 . . . . 2 11 Fabricators 5 | . . . . . . . . 2 . . . . . . . 3 . . . . . . . . . . . Repair Stations 27 | . 2 . 2 . . . 2 6 . . . . 9 . . 2 . . . . . . . . . 4 . Recycling Units 6 | . 1 . 2 . . . . 1 . . . . . . . . . . . . 2 . . . . . . Scanalyzers 12 | . . . . . . . 5 4 . . . . . . . . . . . . . . . . . . 3 Garrison Access 6 | . . . . . . . 1 . . . . . 3 . . . . . . . 2 . . . . . . Terminal Hacks 59 | . 6 . 10 . 2 . 5 1 1 . 3 . . 2 . 2 . . 6 . 2 . . 17 . . 2 Record 7 | . . . . . 2 . . . . . . . . . . . . . . . . . . 5 . . . Part Schematic 10 | . 1 . 2 . . . . . . . 3 . . . . . . . . . . . . 4 . . . Robot Analysis 8 | . 2 . 1 . . . 1 . . . . . . . . . . . . . . . . 4 . . . Prototype ID Bank 12 | . . . 2 . . . . . . . . . . . . . . . 6 . . . . 4 . . . Open Door 3 | . . . . . . . . . 1 . . . . 2 . . . . . . . . . . . . . Branch Access Points 1 | . . . . . . . . . . . . . . . . 1 . . . . . . . . . . . Terminal Index 3 | . . . 1 . . . 1 . . . . . . . . . . . . . . . . . . . 1 Alert Level 3 | . . . 1 . . . . . . . . . . . . . . . . . 2 . . . . . . Locate Traps 4 | . . . 1 . . . 2 1 . . . . . . . . . . . . . . . . . . . Reprogram Traps 2 | . 2 . . . . . . . . . . . . . . . . . . . . . . . . . . Transport Status 1 | . . . 1 . . . . . . . . . . . . . . . . . . . . . . . . Hauler Manifests 2 | . 1 . 1 . . . . . . . . . . . . . . . . . . . . . . . . Zone Layout 3 | . . . . . . . 1 . . . . . . . . 1 . . . . . . . . . . 1 Fabricator Hacks 2 | . . . . . . . . . . . . . . . . 2 . . . . . . . . . . . Network Status 1 | . . . . . . . . . . . . . . . . 1 . . . . . . . . . . . Build 1 | . . . . . . . . . . . . . . . . 1 . . . . . . . . . . . Repair Station Hacks 13 | . 2 . 2 . . . 2 3 . . . . 4 . . . . . . . . . . . . . . Scan Component 7 | . 1 . 1 . . . 1 2 . . . . 2 . . . . . . . . . . . . . . Repair 6 | . 1 . 1 . . . 1 1 . . . . 2 . . . . . . . . . . . . . . Recycling Unit Hacks 1 | . . . . . . . . . . . . . . . . . . . . . 1 . . . . . . Report Inventory 1 | . . . . . . . . . . . . . . . . . . . . . 1 . . . . . . Scanalyzer 9 | . . . . . . . 5 4 . . . . . . . . . . . . . . . . . . . Insert Component 5 | . . . . . . . 3 2 . . . . . . . . . . . . . . . . . . . Analyze 4 | . . . . . . . 2 2 . . . . . . . . . . . . . . . . . . . Garrison Access Hacks 2 | . . . . . . . 1 . . . . . . . . . . . . . 1 . . . . . . Seal Access 2 | . . . . . . . 1 . . . . . . . . . . . . . 1 . . . . . . Unauthorized Hacks 10 | . 2 . 1 . . . 1 2 . . . . . . . 1 . . . . 2 . . . . . 1 Terminals 7 | . 1 . 1 . . . 1 1 . . . . . . . 1 . . . . 1 . . . . . 1 Assimilate 2 | . 1 . . . . . . . . . . . . . . . . . . . . . . . . . 1 Botnet 2 | . . . . . . . . . . . . . . . . 1 . . . . 1 . . . . . . Operators 3 | . . . 1 . . . 1 1 . . . . . . . . . . . . . . . . . . . Fabricators . | . . . . . . . . . . . . . . . . . . . . . . . . . . . . Repair Stations . | . . . . . . . . . . . . . . . . . . . . . . . . . . . . Recycling Units 3 | . 1 . . . . . . 1 . . . . . . . . . . . . 1 . . . . . . Recyclers 2 | . . . . . . . . 1 . . . . . . . . . . . . 1 . . . . . . Tunnel 1 | . 1 . . . . . . . . . . . . . . . . . . . . . . . . . . Scanalyzers . | . . . . . . . . . . . . . . . . . . . . . . . . . . . . Garrison Access . | . . . . . . . . . . . . . . . . . . . . . . . . . . . . Data Cores Recovered 1 | . . . . . . . . . . . . . . . . . . . . . 1 . . . . . . Used 1 | . . . . . . . . . . . . . . . . . . . . . 1 . . . . . . Hacking Detections 48 | . 3 . 7 . . . 7 5 . . . . 5 1 . 4 . . . . 7 . . . . 4 5 Full Trace Events 3 | . . . 1 . . . . . . . . . . . . . . . . . . . . . . 1 1 Feedback Events . | . . . . . . . . . . . . . . . . . . . . . . . . . . . . Feedback Blocked . | . . . . . . . . . . . . . . . . . . . . . . . . . . . . Robot Schematics Acquired 4 | . . . . . . . . . . . 4 . . . . . . . . . . . . . . . . Robots Built 1 | . . . . . . . . . . . . . . . . 1 . . . . . . . . . . . Authchips . | . . . . . . . . . . . . . . . . . . . . . . . . . . . . Time 40 | . . . . . . . . . . . . . . . . 40 . . . . . . . . . . . Total Robot Build Rating 1 | . . . . . . . . . . . . . . . . 1 . . . . . . . . . . . Part Schematics Acquired 25 | . 1 . . . . . 2 2 . . 16 . . . . . . . . . . . . 4 . . . Parts Built . | . . . . . . . . . . . . . . . . . . . . . . . . . . . . Authchips . | . . . . . . . . . . . . . . . . . . . . . . . . . . . . Time . | . . . . . . . . . . . . . . . . . . . . . . . . . . . . Total Part Build Rating . | . . . . . . . . . . . . . . . . . . . . . . . . . . . . Parts Repaired 6 | . 1 . 1 . . . 1 1 . . . . 2 . . . . . . . . . . . . . . Time 184 | . 26 . 38 . . . 19 19 . . . . 82 . . . . . . . . . . . . . . Parts Recycled . | . . . . . . . . . . . . . . . . . . . . . . . . . . . . Recycled Matter . | . . . . . . . . . . . . . . . . . . . . . . . . . . . . Retrieved Matter . | . . . . . . . . . . . . . . . . . . . . . . . . . . . . Retrieved Components . | . . . . . . . . . . . . . . . . . . . . . . . . . . . . Parts Scanalyzed 4 | . . . . . . . 2 2 . . . . . . . . . . . . . . . . . . . Part Schematics Acquired 4 | . . . . . . . 2 2 . . . . . . . . . . . . . . . . . . . Parts Damaged . | . . . . . . . . . . . . . . . . . . . . . . . . . . . . Bothacking | -11 -10 -10 -9 -9 -9 -8 -8 -7 -7 -7 -7 -6 -6 -6 -6 -5 -5 -5 -5 -4 -4 -4 -4 -4 -3 -3 -3 ------------ Run | Scr Mat Min Mat Min Exi Min Mat Fac Low Low Zio Pro Fac Ext Cet Fac Upp Upp War Pro Fac Upp Upp Zhi Pro Res Tes Used RIF Installer . | . . . . . . . . . . . . . . . . . . . . . . . . . . . . Robots Hacked . | . . . . . . . . . . . . . . . . . . . . . . . . . . . . Non-combat . | . . . . . . . . . . . . . . . . . . . . . . . . . . . . Combat . | . . . . . . . . . . . . . . . . . . . . . . . . . . . . Robot Hacks Applied . | . . . . . . . . . . . . . . . . . . . . . . . . . . . . Relay Couplers Released . | . . . . . . . . . . . . . . . . . . . . . . . . . . . . Fabnet Peak Effective % . | . . . . . . . . . . . . . . . . . . . . . . . . . . . . Robots Rewired 7 | . . . . . . . . . . . . . 1 4 . . . . . . . . . . 1 1 . Allies Hacked . | . . . . . . . . . . . . . . . . . . . . . . . . . . . . Hacks Repelled . | . . . . . . . . . . . . . . . . . . . . . . . . . . . . Allies | -11 -10 -10 -9 -9 -9 -8 -8 -7 -7 -7 -7 -6 -6 -6 -6 -5 -5 -5 -5 -4 -4 -4 -4 -4 -3 -3 -3 -------- Run | Scr Mat Min Mat Min Exi Min Mat Fac Low Low Zio Pro Fac Ext Cet Fac Upp Upp War Pro Fac Upp Upp Zhi Pro Res Tes Total Allies 18 | . 1 . . . . . . . . . . . 1 12 . 1 . . . . . . . . 1 1 1 Largest Group 7 | . 1 . . . . . . . . . . . 1 7 2 1 . . . . . . . . 1 1 1 Highest-Rated Group 205 | . 10 . . . . . . . . . . . 32 205 65 10 . . . . . . . . 47 56 26 Highest-Rated Ally 56 | . 10 . . . . . . . . . . . 32 39 39 10 . . . . . . . . 47 56 26 Total Orders . | . . . . . . . . . . . . . . . . . . . . . . . . . . . . Ally Attacks 108 | . . . . . . . . . . . . . 2 77 25 . . . . . . . . . . 4 . Total Damage 2204 | . . . . . . . . . . . . . 74 1490 514 . . . . . . . . . . 126 . Kills 16 | . . . . . . . . . . . . . . 14 2 . . . . . . . . . . . . Allies Corrupted 1 | . . . . . . . . . . . . . 1 . . . . . . . . . . . . . . Allies Melted 3 | . . . . . . . . . . . . . . 1 . . . . 2 . . . . . . . . Intel | -11 -10 -10 -9 -9 -9 -8 -8 -7 -7 -7 -7 -6 -6 -6 -6 -5 -5 -5 -5 -4 -4 -4 -4 -4 -3 -3 -3 ------- Run | Scr Mat Min Mat Min Exi Min Mat Fac Low Low Zio Pro Fac Ext Cet Fac Upp Upp War Pro Fac Upp Upp Zhi Pro Res Tes Robot Analysis Total 8 | . 2 . 1 . . . 1 . . . . . . . . . . . . . . . . 4 . . . Derelict Logs Recovered 11 | . . 1 . 1 . . . . 2 . 1 1 . . . . 1 . . 2 . 1 1 . . . . Drone Launches . | . . . . . . . . . . . . . . . . . . . . . . . . . . . . Drone Recoveries . | . . . . . . . . . . . . . . . . . . . . . . . . . . . . Exploration | -11 -10 -10 -9 -9 -9 -8 -8 -7 -7 -7 -7 -6 -6 -6 -6 -5 -5 -5 -5 -4 -4 -4 -4 -4 -3 -3 -3 ------------- Run | Scr Mat Min Mat Min Exi Min Mat Fac Low Low Zio Pro Fac Ext Cet Fac Upp Upp War Pro Fac Upp Upp Zhi Pro Res Tes Turns Passed 23570 | 54 743 588 1430 750 405 859 1991 948 705 449 1123 573 1404 1150 237 709 445 424 1314 846 2674 603 649 355 656 1317 169 Spaces Moved 11227 | 31 363 354 729 302 169 302 702 551 434 232 713 273 604 573 75 354 270 240 752 467 1099 216 256 158 265 613 130 Core 106 | 7 . . . . . . . . . . . . . . . . . . . . . . . . . 99 . Treads 9717 | 24 363 354 729 302 169 302 702 551 434 232 713 273 604 573 75 354 270 240 752 467 1099 31 . . . 104 . Legs 698 | . . . . . . . . . . . . . . . . . . . . . . . . 68 265 295 70 Wheels 612 | . . . . . . . . . . . . . . . . . . . . . . 185 256 90 . 80 1 Hover . | . . . . . . . . . . . . . . . . . . . . . . . . . . . . Flight 94 | . . . . . . . . . . . . . . . . . . . . . . . . . . 35 59 Fastest Speed 30 | 50 160 160 160 240 240 240 240 155 155 155 155 155 161 160 160 160 160 160 160 160 160 240 240 190 190 45 30 Average Speed 176 | 141 161 160 165 240 240 240 240 156 155 155 155 157 174 166 189 160 160 160 160 160 183 240 240 209 190 149 79 Slowest Speed 250 | 160 240 160 240 240 240 240 240 160 155 155 155 163 250 245 240 160 160 160 160 160 250 240 240 240 190 225 90 Overloaded Moves . | . . . . . . . . . . . . . . . . . . . . . . . . . . . . Propulsion Burnouts . | . . . . . . . . . . . . . . . . . . . . . . . . . . . . Robots Hopped 1 | . . . . . . . . . . . . . . . . . . . . . . . . . . 1 . Cave-ins Triggered 2 | . . . . . . . . 1 . 1 . . . . . . . . . . . . . . . . . Teleports 1 | . . . . . . . . . . . . . . . . . . . . . . . . . . 1 . Exploration Rate (%) 49 | 3 88 76 72 49 53 75 63 17 67 40 81 44 16 71 26 16 49 41 85 70 24 50 48 60 50 21 23 Regions Visited 27 Branch Regions 19 Pre-discovered Areas 8 | . 1 1 . . 1 . . . . . 2 . . . . . . . . . . . . 3 . . . Known Exits Taken 16 | . . 1 . . . 1 . 1 1 . . . 1 . . 1 1 1 1 1 1 1 1 1 1 1 . Unknown Exits Taken 11 | 1 1 . 1 1 1 . 1 . . 1 1 1 . 1 1 . . . . . . . . . . . . Scrap Searched 21 | . . 1 . 1 . . . . 3 2 4 . . . . . 2 2 . 2 . 2 1 . 1 . . Spaces Dug 133 | . . . . . . . . 8 . 8 . . 6 1 . 2 . . 13 22 18 5 . . 5 45 . Terrain Destroyed 1177 | . . . . 14 . . 58 8 . 42 . 12 9 26 23 4 13 19 51 84 215 15 63 1 123 290 107 Melee 63 | . . . . . . . . 8 . 8 . . 5 1 . 2 . . 10 8 10 1 . . . 10 . Projectile 127 | . . . . . . . . . . . . . 4 1 1 1 . 2 1 21 59 7 . 1 15 12 2 AOE 986 | . . . . 14 . . 58 . . 34 . 12 . 24 22 . 13 17 40 55 146 7 63 . 108 268 105 Terrain Rammed . | . . . . . . . . . . . . . . . . . . . . . . . . . . . . Walls Destroyed . | . . . . . . . . . . . . . . . . . . . . . . . . . . . . Machines Disabled . | . . . . . . . . . . . . . . . . . . . . . . . . . . . . Actions | -11 -10 -10 -9 -9 -9 -8 -8 -7 -7 -7 -7 -6 -6 -6 -6 -5 -5 -5 -5 -4 -4 -4 -4 -4 -3 -3 -3 --------- Run | Scr Mat Min Mat Min Exi Min Mat Fac Low Low Zio Pro Fac Ext Cet Fac Upp Upp War Pro Fac Upp Upp Zhi Pro Res Tes Total 13557 | 39 452 367 877 315 169 371 887 616 463 302 729 345 853 702 130 450 277 266 833 522 1501 267 280 175 346 847 176 Wait 782 | 1 29 9 45 . . 19 38 31 25 49 . 17 158 9 8 51 3 12 5 18 179 16 9 . 9 28 14 Move 11198 | 30 362 353 728 301 168 301 701 550 433 231 712 272 603 572 74 353 269 239 751 466 1098 215 255 157 264 610 130 Hop 1 | . . . . . . . . . . . . . . . . . . . . . . . . . . 1 . Pick Up 170 | 2 14 . 18 2 1 3 23 1 1 1 4 2 10 11 5 10 . 1 14 . 20 3 2 1 2 19 . Fast Attach 84 | 5 3 . 3 . . 2 5 4 . . . 1 2 8 1 2 . 1 8 . 7 1 . 7 3 18 3 Attach 100 | 1 1 . 4 . . 6 7 2 . 2 . 3 5 12 5 4 . 1 2 . 8 4 1 1 7 22 2 Detach 21 | . 1 . . . . . 2 . . . . 1 . 5 2 1 . . 1 . 1 1 . 1 1 4 . Swap 147 | . 1 . 10 4 . . 11 5 . 4 3 3 5 8 4 7 1 6 10 4 33 7 5 . 6 10 . Drop 138 | . 3 . 19 . . . 23 8 1 . 5 1 4 10 3 2 . 1 19 . 20 . 3 4 2 10 . Fire 746 | . 38 5 49 7 . 40 75 6 3 7 . 45 48 39 28 18 4 5 7 26 124 19 5 . 41 89 18 Melee 94 | . . . . . . . 2 9 . 8 5 . 11 2 . 2 . . 16 8 10 1 . 4 . 16 . Ram . | . . . . . . . . . . . . . . . . . . . . . . . . . . . . Kick . | . . . . . . . . . . . . . . . . . . . . . . . . . . . . Crush 3 | . . . 1 1 . . . . . . . . . . . . . . . . 1 . . . . . . Escape Stasis 9 | . . . . . . . . . . . . . . . . . . . . . . . . . . . 9 Rewire 64 | . . . . . . . . . . . . . 7 26 . . . . . . . . . . 11 20 . Trap . | . . . . . . . . . . . . . . . . . . . . . . . . . . . . Miscellaneous . | . . . . . . . . . . . . . . . . . . . . . . . . . . . . Route ------- -11/Scrapyard -10/Materials (discovered 4 exits: *Mat x2 / [*Min x2]) -10/Mines (discovered 2 exits: *Mat x2) -9/Materials (discovered 3 exits: *Mat x2 / [*Min]) -9/Mines (discovered 3 exits: Mat / *Exi / *Zio) -9/Exiles (discovered 2 exits: [*Min x2]) -8/Mines -8/Materials (discovered 3 exits: *Fac x2 / [*Sto]) -7/Factory -7/Lower Caves -7/Lower Caves -7/Zion -6/Proximity Caves -6/Factory (discovered 3 exits: *Low / *Ext x2) -6/Extension (discovered 3 exits: *Fac x2 / [*Cet]) -6/Cetus -5/Factory (discovered 2 exits: *Upp x2) -5/Upper Caves -5/Upper Caves -5/Warlord -4/Proximity Caves -4/Factory (discovered 2 exits: *Res / *Upp) -4/Upper Caves -4/Upper Caves -4/Zhirov -3/Proximity Caves -3/Research -3/Testing History --------- Turn | Location | Event 17 | -11/Scrapyard | Discovered new exit (range 16) 55 | -11/Scrapyard | Entered Materials 168 | -10/Materials | Discovered new exit (range 11) 278 | -10/Materials | Repaired Lgt. Treads 318 | -10/Materials | Build established: Mutant 330 | -10/Materials | Discovered new exit (range 16) 655 | -10/Materials | Discovered new exit (range 14) 761 | -10/Materials | Discovered new exit (range 15) 798 | -10/Materials | Entered Mines 940 | -10/Mines | Identified exit to Materials 1045 | -10/Mines | Learned location of Storage (-8) 1049 | -10/Mines | Discovered exit to Materials (range 9) 1386 | -10/Mines | Entered Materials 1386 | -9/Materials | Evolved 2 slots: Propulsion x1, Utility x1 1929 | -9/Materials | Discovered new exit (range 16) 2164 | -9/Materials | Discovered new exit (range 16) 2188 | -9/Materials | Repaired Hrd. Medium Armor Plating 2472 | -9/Materials | Discovered new exit (range 16) 2816 | -9/Materials | Entered Mines 2884 | -9/Mines | Deemed a non-threat by the Exiles lab entrance 2884 | -9/Mines | Discovered new exit (range 5) 3120 | -9/Mines | A Derelict revealed a hidden shortcut to a safe place 3124 | -9/Mines | Identified exit to Materials 3179 | -9/Mines | Found a damaged Exp. Sensor Array with a note attached 3184 | -9/Mines | Found Prototype Device 3257 | -9/Mines | Received a Rocket Launcher from a helpful Derelict 3566 | -9/Mines | Entered Exiles 3605 | -9/Exiles | Discovered new exit (range 15) 3631 | -9/Exiles | Met 8R-AWN 3667 | -9/Exiles | Met EX-HEX 3782 | -9/Exiles | Met EX-BIN 3816 | -9/Exiles | Met EX-DEC 3828 | -9/Exiles | Learned location of Zion (-7) 3944 | -9/Exiles | Discovered new exit (range 12) 3971 | -9/Exiles | Entered Mines 4818 | -8/Mines | Discovered exit to Materials (range 6) 4830 | -8/Mines | Entered Materials 4830 | -8/Materials | Evolved 2 slots: Propulsion x1, Utility x1 5124 | -8/Materials | Build established: Scavenger-Mutant 5124 | -8/Materials | Discovered new exit (range 5) 5414 | -8/Materials | Repaired Hrd. Medium Armor Plating 5473 | -8/Materials | Discovered new exit (range 14) 5892 | -8/Materials | Build established: Mutant 6128 | -8/Materials | Identified Exp. Sensor Array 6190 | -8/Materials | Discovered new exit (range 4) 6821 | -8/Materials | Entered Factory 6821 | -7/Factory | Evolved 2 slots: Utility x2 6953 | -7/Factory | Repaired Hrd. Medium Armor Plating 7308 | -7/Factory | Crushed by falling debris 7689 | -7/Factory | Discovered new exit (range 11) 7706 | -7/Factory | Identified exit to Lower Caves 7769 | -7/Factory | Entered Lower Caves 7893 | -7/Lower Caves | Learned Factory interactive machine intel 7948 | -7/Lower Caves | Learned 8 Factory zone layouts 8247 | -7/Lower Caves | Encountered a Warlord checkpoint 8439 | -7/Lower Caves | Discovered new exit (range 10) 8472 | -7/Lower Caves | Identified exit to Lower Caves 8474 | -7/Lower Caves | Entered another Lower Caves area 8477 | -7/Lower Caves | Encountered a Warlord checkpoint 8735 | -7/Lower Caves | Crushed by falling debris 8735 | -7/Lower Caves | System corruption reached 10% 8899 | -7/Lower Caves | Discovered new exit (range 16) 8923 | -7/Lower Caves | Entered Zion 8990 | -7/Zion | System corruption cleaned by Quarantine Array 9154 | -7/Zion | Discovered new exit (range 11) 10046 | -7/Zion | Entered Proximity Caves 10581 | -6/Proximity Caves | Discovered new exit (range 6) 10604 | -6/Proximity Caves | Learned Factory terminal intel 10619 | -6/Proximity Caves | Entered Factory 10619 | -6/Factory | Evolved 2 slots: Power x1, Weapon x1 10620 | -6/Factory | Identified exit to Lower Caves 10620 | -6/Factory | Identified exit to Extension 10621 | -6/Factory | Loaded intel: 54 interactive machine locations 10622 | -6/Factory | Loaded intel: 28 terminal locations 10968 | -6/Factory | Repaired Med. Treads 11197 | -6/Factory | Build established: Scavenger-Gunner 11621 | -6/Factory | Repaired Adv. Treads 12003 | -6/Factory | Build established: Scavenger-Mutant 12023 | -6/Factory | Entered Extension 12081 | -6/Extension | Rescued a captive Derelict 12082 | -6/Extension | Rescued a captive Derelict 12256 | -6/Extension | Energy Cycler disabled 12256 | -6/Extension | Rescued a captive Derelict 12256 | -6/Extension | Rescued a captive Derelict 12256 | -6/Extension | Rescued a captive Derelict 12256 | -6/Extension | Rescued a captive Derelict 12256 | -6/Extension | Rescued a captive Derelict 12256 | -6/Extension | Rescued a captive Derelict 12257 | -6/Extension | Rescued a captive Derelict 12257 | -6/Extension | Rescued a captive Derelict 12258 | -6/Extension | Rescued a captive Derelict 12259 | -6/Extension | Rescued a captive Derelict 12261 | -6/Extension | Rescued a captive Derelict 12265 | -6/Extension | Rescued a captive Derelict 12271 | -6/Extension | Rescued a captive Derelict 12285 | -6/Extension | Rescued a captive Derelict 12419 | -6/Extension | Lost 8 parts (2n2u4w) 12839 | -6/Extension | Spotted B-75 Beast 12844 | -6/Extension | Destroyed B-75 Beast 12866 | -6/Extension | Spotted B-75 Beast 12870 | -6/Extension | Discovered new exit (range 14) 12881 | -6/Extension | Destroyed B-75 Beast 12971 | -6/Extension | Extracted ID and sensor layout for unrecognized location from A7's data core 13139 | -6/Extension | Discovered new exit (range 16) 13139 | -6/Extension | Discovered new exit (range 16) 13173 | -6/Extension | Entered Cetus 13173 | -6/Cetus | Accompanied by 2 allies 13202 | -6/Cetus | Spotted Cetus Guard 13202 | -6/Cetus | Spotted Cetus Guard 13205 | -6/Cetus | Spotted Cetus Guard 13210 | -6/Cetus | Allies destroyed Cetus Guard 13213 | -6/Cetus | Spotted Cetus Guard 13214 | -6/Cetus | Allies destroyed Cetus Guard 13230 | -6/Cetus | Destroyed Cetus Guard 13234 | -6/Cetus | Destroyed Cetus Guard 13351 | -6/Cetus | Lost 5 parts (2p1n1u1w) 13372 | -6/Cetus | Discovered new exit (range 15) 13410 | -6/Cetus | Entered Factory 13410 | -5/Factory | Evolved 2 slots: Propulsion x1, Utility x1 13787 | -5/Factory | Fabricated T-07 Excavator? 13836 | -5/Factory | Identified exit to Upper Caves 14119 | -5/Factory | Entered Upper Caves 14120 | -5/Upper Caves | Encountered a Warlord checkpoint 14502 | -5/Upper Caves | Learned location of 1 exit from Factory 14539 | -5/Upper Caves | Discovered new exit (range 16) 14561 | -5/Upper Caves | Identified exit to Upper Caves 14564 | -5/Upper Caves | Entered another Upper Caves area 14949 | -5/Upper Caves | Discovered new exit (range 13) 14987 | -5/Upper Caves | Identified exit to Warlord 14988 | -5/Upper Caves | Entered Warlord 15043 | -5/Warlord | System corruption cleaned by Quarantine Array 15080 | -5/Warlord | Discovered new exit (range 12) 15323 | -5/Warlord | Found Prototype Device 15323 | -5/Warlord | Identified Minesniffer Drone Bay 15567 | -5/Warlord | Found Prototype Special Weapon 15569 | -5/Warlord | Found Prototype Special Weapon 15575 | -5/Warlord | Found Prototype Special Weapon 15578 | -5/Warlord | Found Prototype Special Weapon 15581 | -5/Warlord | Found Prototype Special Weapon 15584 | -5/Warlord | Found Prototype Special Weapon 15769 | -5/Warlord | Warlord's base attacked by MAIN.C 16011 | -5/Warlord | Met Warlord 16037 | -5/Warlord | Identified RU-N14's Throwing Claymores v3 (x6) 16050 | -5/Warlord | Found Exp. Targeting Computer 16065 | -5/Warlord | Found Prototype Hackware 16073 | -5/Warlord | Found Prototype Reactor 16119 | -5/Warlord | Warlord forces counterattacked 16149 | -5/Warlord | Spotted Striker 16200 | -5/Warlord | Spotted Executioner 16211 | -5/Warlord | Spotted Striker 16231 | -5/Warlord | Spotted Striker 16274 | -5/Warlord | Spotted Executioner 16284 | -5/Warlord | Destroyed Executioner 16301 | -5/Warlord | Identified exit to Proximity Caves 16302 | -5/Warlord | Entered Proximity Caves 16343 | -4/Proximity Caves | Destroyed 16 combat bots 16686 | -4/Proximity Caves | Learned Research terminal intel 17133 | -4/Proximity Caves | Discovered new exit (range 10) 17146 | -4/Proximity Caves | Identified exit to Factory 17148 | -4/Proximity Caves | Entered Factory 17148 | -4/Factory | Evolved 2 slots: Propulsion x1, Utility x1 17149 | -4/Factory | Identified exit to Upper Caves 17508 | -4/Factory | Spotted B-86 Titan 17534 | -4/Factory | Build established: Scavenger-Tank 18241 | -4/Factory | Discovered new exit (range 5) 18246 | -4/Factory | Identified exit to Research 18272 | -4/Factory | Build established: Scavenger-Mutant 19148 | -4/Factory | First assault squad dispatched 19822 | -4/Factory | Entered Upper Caves 19909 | -4/Upper Caves | Attracted the attention of an 0b10 checkpoint 20385 | -4/Upper Caves | Discovered new exit (range 13) 20388 | -4/Upper Caves | Learned Research interactive machine intel 20423 | -4/Upper Caves | Identified exit to Upper Caves 20425 | -4/Upper Caves | Entered another Upper Caves area 20550 | -4/Upper Caves | Learned Research trap positions 20719 | -4/Upper Caves | Acquired the password to a Derelict Tinkerer's latest research 20761 | -4/Upper Caves | Found Prototype Special Weapon 21058 | -4/Upper Caves | Discovered new exit (range 7) 21071 | -4/Upper Caves | Identified exit to Zhirov 21074 | -4/Upper Caves | Entered Zhirov 21074 | -4/Zhirov | Discovered new exit (range 3) 21116 | -4/Zhirov | Met Zhirov 21161 | -4/Zhirov | Learned location of Quarantine (-2) 21161 | -4/Zhirov | Learned location of Testing (-3) 21161 | -4/Zhirov | Learned location of Command (-1) 21181 | -4/Zhirov | Zhirov requested help retrieving the SGEMP Prototype 21218 | -4/Zhirov | Found Alien Artifact 21218 | -4/Zhirov | Identified Integrated Reactor 21218 | -4/Zhirov | Installed Integrated Reactor, increased core energy generation (+10) 21347 | -4/Zhirov | Found Alien Artifact 21427 | -4/Zhirov | Identified exit to Proximity Caves 21429 | -4/Zhirov | Entered Proximity Caves 21727 | -3/Proximity Caves | System corruption reached 10% 21869 | -3/Proximity Caves | Found Alien Artifact 21869 | -3/Proximity Caves | Identified Core Expander 21869 | -3/Proximity Caves | Installed Core Expander, added new Weapon slot 21946 | -3/Proximity Caves | Attracted the attention of an 0b10 outpost 21978 | -3/Proximity Caves | Core integrity fell below 50% 22025 | -3/Proximity Caves | Destroyed 10 combat bots 22034 | -3/Proximity Caves | Lost 7 parts (1p3u3w) 22071 | -3/Proximity Caves | Discovered exit to Research (range 8) 22085 | -3/Proximity Caves | Entered Research 22085 | -3/Research | Accompanied by 1 ally 22085 | -3/Research | Evolved 2 slots: Power x1, Utility x1 22086 | -3/Research | Identified exit to Testing 22087 | -3/Research | Loaded intel: 118 trap records 22088 | -3/Research | Loaded intel: 43 interactive machine locations 22089 | -3/Research | Loaded intel: 22 terminal locations 22099 | -3/Research | Identified Vortex Chain Reactor 22652 | -3/Research | Lost 7 parts (2p3u2w) 22699 | -3/Research | Identified Molecular Deconstructor 22700 | -3/Research | Identified Transdimensional Reconstructor 22700 | -3/Research | Warped through subspace 22729 | -3/Research | Lost 5 parts (1p4w) 22888 | -3/Research | System corruption reached 10% 22890 | -3/Research | Garrison activated, responded to threat 22918 | -3/Research | Lost 5 parts (2n1u2w) 23031 | -3/Research | Lost 5 parts (1n3u1w) 23076 | -3/Research | Lost 3 parts (1n1u1w) 23097 | -3/Research | Core integrity fell below 50% 23200 | -3/Research | Lost 5 parts (1p1n1u2w) 23316 | -3/Research | Spotted B-86 Titan 23322 | -3/Research | Identified System Mapper 23329 | -3/Research | Spotted B-86 Titan 23340 | -3/Research | Core integrity fell below 20% 23402 | -3/Research | Entered Testing 23554 | -3/Testing | Garrison activated, responded to threat 23568 | -3/Testing | Scanned by Researcher 23571 | -3/Testing | Destroyed by H-77 Assassin with Coil Gun Last Messages --------------- 23561_ Penetrated by Slug. 23562_ G-67 Veteran Lgt. Antimatter Reactor severed. 23562_ G-67 Veteran destroyed. 23562_ G-73 Enforcer destroyed. 23564_ Railgun destroyed. 23564_ Adv. VSS Leg destroyed. 23564_ RU-N14's Throwing Claymores v3 expended. 23564_ S-43 Plague destroyed. 23568_ Penetrated by Slug. 23568_ Arm. Heavy Treads destroyed. 23568_ Penetrated by Slug. 23568_ Acquired 1 matter. 23568_ C-55 Analyst calls for reinforcements. 23568_ ALERT: Hostile activity reported, dispatching reinforcements to area. 23568_ Held in stasis. 23568_ C-55 Analyst is analyzing... 23568_ ALERT: Encountered unknown unique technology, formulating response. 23569_ Critical hit (Burn: +50). 23571_ Penetrated by Slug. Map ----- +----------------------------------------------------+ | ????????????????????????????? | | ????????????????????????????? | | ????????????????????????????? | | ????????????????????????????? | | ????????????????????????????? | | ????????????????????????????? | | ????????????????????????????? | | ????????????????????????????? | | ????????????????????????????? | | ????????????????????????????? | | ????????????????????????????? | | ????????????????????????????? | | ?????????#####??????????????? | | ????????? ??????????????? | | ?######?? #????????????? | | ## ### g ?????????????? | | # ## = ??????????????? | | # #??????????????? | | ch#??????????????? | | +??????????????? | | # #??????????????? | | # #??????????????? | | ? #####??????????? | | ## = #######+???? | | # [ ???? | | # ""@ ??? | | # " !% = ???? | | # " # ##+#???????? | | # " ## #??????????? | | # s#?# #??????????? | | # #??# # """ ##### | | # ! #??# # """ #???## | | #] #??# # """ #????? | | ######??# # """ #????? | | ????????# # #????? | | ????????# # #????? | | ????##### # #????? | | ????# # #????? | | ????# # #????? | | ????# ###########? | | ????# #? | | ????# ########## #? | | ????# # ## #? | | ????# + [!#####? | | ????#### # ! #????? | | ?????#"" # "T" #????? | | ?????#T # ! #????? | | ?????### #########????? | | ######## #????######### | | # # #????# | +----------------------------------------------------+ Best States ------------- Heat Dissipation 89 Energy Generation 79 Energy Capacity 750 Matter Stores 300 Matter Capacity 300 Sight Range 16 Robot Scan Range 20 Terrain Scan Range 24 Terrain Scan Density 210 Jamming Range 14 Corruption Block 15 Armor Coverage 600 Resistance: KI 30 Resistance: TH 25 Weapon Shielding 33 Weapon Cycling 15 Evasion (%) 61 Targeting Accuracy 12 Melee Accuracy 6 Launcher Accuracy 30 Armor Integrity Analysis 30 Recoil Reduction 6 Offensive Hacking 20 Defensive Hacking 11 Item Schematics ----------------- Huge Storage Unit | -10/Materials | Hacked Hcp. Storage Unit | -8/Materials | Scanalyzed Enh. Autogun | -8/Materials | Scanalyzed Mni. Grenade Launcher | -7/Factory | Scanalyzed System Shield | -7/Factory | Scanalyzed Powered Hammer | -7/Zion | Archive Flexi-carbon Leg | -7/Zion | Archive Imp. Reaction Control System | -7/Zion | Archive System Restoration Module | -7/Zion | Archive Imp. Deuterium Engine | -7/Zion | Archive KE Penetrator | -7/Zion | Archive Adv. Field Recycling Unit | -7/Zion | Archive Kinecellerator | -7/Zion | Archive Imp. System Shield | -7/Zion | Archive Adv. ECM Suite | -7/Zion | Archive Magnetic Acceleration Cannon | -7/Zion | Archive Lightning Gun | -7/Zion | Archive Gatling Laser | -7/Zion | Archive Barrage Gun | -7/Zion | Free Battle Cannon | -7/Zion | Free Bore Cannon | -7/Zion | Free Assault Drone Bay | -4/Zhirov | Free Exp. Heat Sink | -4/Zhirov | Free Exp. Optical Array | -4/Zhirov | Free Imp. Arc Thrower | -4/Zhirov | Free Robot Schematics ------------------ O-24 Administrator | -7/Zion | Archive B-48 Gladiator | -7/Zion | Archive L-41 Fighter | -7/Zion | Archive X-82 Rainmaker | -7/Zion | Archive Fabricated ------------ T-07 Excavator | x1 | -5/Factory | Preloaded Alien Tech Used ----------------- Integrated Reactor Core Expander Transdimensional Reconstructor Achievements -------------- None Challenges ------------ None Game ------ Seed InsulatedTrackerMantle Manual? 0 Play Time 03:37:59 Cumulative 163.2 hours Start 2022.08.27 @ 14:56:31 End 2022.08.28 @ 17:18:42 Sessions 7 Manual Loads 0 Difficulty Rogue Special Mode None Game No. 63 Rogue 63 Adventurer 0 Explorer 0 Win Type - Total 5 Types 3/0/1/1/0/0/0/0/0 Lore% 74 Gallery% 70 Achievement% 60 Wizard Run 0 Options --------- ASCII 0 Keyboard 1 Movement Numpad Keybinds 0 Fullscreen 2 Font 18/X11 Map View 76x50 Tactical HUD 1 Map Filters NONE Filters NONE Steam 1 RUN: aa04d71f-2ab2-4b53-9f89-c1d4effb4999